Workbook

Sheet Informe_3
A1: ENTEL PERU S.A.-2017-3 IMPUTACIÓN DEL CAPITAL INVERTIDO A LAS LÍNEAS DE NEGOCIO-21052018
A3: Informe 3: IMPUTACIÓN DEL CAPITAL INVERTIDO A LAS LÍNEAS DE NEGOCIO
A5: Periodo de reporte: Al 31 de Diciembre 2017
A6: Expresado en Miles de Nuevos Soles
A7: Descripción PCR | B7: Código plan contable | C7: Código PCR | D7: 1. Acceso Instalación Telefonía Fija de Abonado Urbano | E7: 2. Prestación del servicio de voz Telefonía Fija local desde Abonado Urbano | F7: 3. Prestación del servicio de voz Telefonía Fija LD desde Abonado Urbano | G7: 4. Prestación del servicio de voz Telefonía Fija Local desde TUP Urbano | H7: 5. Prestación del servicio de voz Telefonía Fija LD desde TUP Urbano | I7: 6. Acceso Instalación Telefonía Fija de Abonado Rural | J7: 7. Prestación del servicio de voz Telefonía Fija Local desde Abonado Rural | K7: 8. Prestación del servicio de voz Telefonía Fija LD desde Abonado Rural | L7: 9. Prestación del servicio de voz Telefonía Fija Local desde TUP Rural | M7: 10. Prestación del servicio de voz Telefonía Fija LD desde TUP Rural | N7: 11. Instalación Televisión de Paga | O7: 12. Prestación de servicios Televisión de Paga | P7: 13. Instalación Internet Fijo | Q7: 14. Prestación de servicios Internet Fijo | R7: 15. Prestación de servicio voz móvil por Telefonía Móvil | S7: 16. Mensajes de Texto Telefonía Móvil | T7: 17. Roaming Internacional por Telefonía Móvil | U7: 18. Prestación de Internet Móvil | V7: 19. Servicios Suplementarios | W7: 20. Servicios de valor añadido (No incluye Internet) | X7: 21. Suministro de Equipos | Y7: 22. Instalación para Alquiler de circuitos y Transmisión de Datos para clientes privados y otros operadores | Z7: 23. Alquiler de Circuitos y Transmisión de Datos a clientes privados y otros operadores | AA7: 24. Provisión de acceso a EEDE | AB7: 25. Interconexión | AC7: Total | AD7: Número de nota
A9: CAPITAL DE TRABAJO | D9: =+D10-D11 -> 0 | E9: =+E10-E11 -> 207.80497 | F9: 53.29486 | G9: 0 | H9: 0 | I9: 0 | J9: 0 | K9: 0 | L9: 0 | M9: 0 | N9: 0 | O9: 0 | P9: 0 | Q9: -154361.3347 | R9: =+R10-R11 -> 212678.2246 | S9: -0.12 | T9: 1832.53985 | U9: -252490.1216 | V9: 10749.48262 | W9: 1053.06101 | X9: -103047.5643 | Y9: 0 | Z9: 1464.71477 | AA9: -1272.63001 | AB9: 113527.5235 | AC9: -169605.1244
A10: ACTIVO CORRIENTE | D10: 0 | E10: 245.81497 | F10: 70.85486 | Q10: 14161.87532 | R10: 260876.2946 | S10: 0 | T10: 4347.96985 | U10: 219367.7584 | V10: 15609.32262 | W10: 1053.06101 | X10: 148525.7457 | Z10: 1464.71477 | AA10: 171.18999 | AB10: =115410.71666+15793.47686 -> 131204.1935 | AC10: =SUM(D10:AB10) -> 797098.7956 | AD10: 3.2
A11: PASIVO CORRIENTE | D11: 0 | E11: 38.01 | F11: 17.56 | Q11: 168523.21 | R11: 48198.07 | S11: 0.12 | T11: 2515.43 | U11: 471857.88 | V11: 4859.84 | W11: 0 | X11: 251573.31 | AA11: 1443.82 | AB11: 17676.67 | AC11: 966703.92 | AD11: 3.2
A13: ACTIVO FIJO NETO | D13: =+D14 -> 0 | E13: 18.418081 | F13: 13.09482 | G13: 0 | H13: 0 | I13: 0 | J13: 0 | K13: 0 | L13: 0 | M13: 0 | N13: 0 | O13: 0 | P13: 0 | Q13: 521700.5837 | R13: =+R14 -> 21953.19718 | S13: 1919.05593 | T13: 42.87366 | U13: 1484446.36 | V13: 0 | W13: 5470.85176 | X13: 0 | Y13: 0 | Z13: 0 | AA13: 0 | AB13: 7318.20162 | AC13: =SUM(D13:AB13) -> 2042882.637
A14: Activo Fijo Neto | C14: 30 | D14: =+D15+D47 -> 0 | E14: =+E15+E47 -> 18.418081 | F14: 13.09482 | G14: 0 | H14: 0 | I14: 0 | J14: 0 | K14: 0 | L14: 0 | M14: 0 | N14: 0 | O14: 0 | P14: 0 | Q14: 521700.5837 | R14: =+R15+R47 -> 21953.19718 | S14: 1919.05593 | T14: 42.87366 | U14: 1484446.36 | V14: 0 | W14: 5470.85176 | X14: 0 | Y14: 0 | Z14: 0 | AA14: 0 | AB14: 7318.20162 | AC14: 2042882.637
A15: Planta y Equipo de Comunicaciones | C15: 301 | D15: =+D16+D24+D25+D34+D41 -> 0 | E15: =+E16+E24+E25+E34+E41 -> 17.57511 | F15: 12.24754 | G15: 0 | H15: 0 | I15: 0 | J15: 0 | K15: 0 | L15: 0 | M15: 0 | N15: 0 | O15: 0 | P15: 0 | Q15: 487944.3638 | R15: =+R16+R24+R25+R34+R41 -> 20532.73308 | S15: 1918.83399 | T15: 40.09955 | U15: 1388845.557 | V15: 0 | W15: 5470.85176 | X15: 0 | Y15: 0 | Z15: 0 | AA15: 0 | AB15: 6843.54041 | AC15: 1911625.802
A16: Equipos terminales | B16: Nota 3.1 | C16: 3011 | R16: =SUM(R17:R23) -> 0 | S16: 0 | T16: 0 | U16: 0 | V16: 0 | W16: 0 | X16: 0 | Y16: 0 | Z16: 0 | AA16: 0 | AB16: 0 | AC16: 0 | AD16: 3.1
A17: Equipos terminales - Teléfonos de Abonados | B17: Nota 3.1 | C17: 30111 | R17: 0 | S17: 0 | T17: 0 | U17: 0 | V17: 0 | W17: 0 | X17: 0 | Y17: 0 | Z17: 0 | AA17: 0 | AB17: 0 | AC17: 0 | AD17: 3.1
A18: Equipos terminales - Teléfonos Públicos | B18: Nota 3.1 | C18: 30112 | R18: 0 | S18: 0 | T18: 0 | U18: 0 | V18: 0 | W18: 0 | X18: 0 | Y18: 0 | Z18: 0 | AA18: 0 | AB18: 0 | AC18: 0 | AD18: 3.1
A19: Equipos Terminales - Televisión de Paga | B19: Nota 3.1 | C19: 30113 | R19: 0 | S19: 0 | T19: 0 | U19: 0 | V19: 0 | W19: 0 | X19: 0 | Y19: 0 | Z19: 0 | AA19: 0 | AB19: 0 | AC19: 0 | AD19: 3.1
A20: Equipos Terminales - Internet Fijo | B20: Nota 3.1 | C20: 30114 | R20: 0 | S20: 0 | T20: 0 | U20: 0 | V20: 0 | W20: 0 | X20: 0 | Y20: 0 | Z20: 0 | AA20: 0 | AB20: 0 | AC20: 0 | AD20: 3.1
A21: Equipos Terminales - Telefonía Móvil | B21: Nota 3.1 | C21: 30115 | R21: 0 | S21: 0 | T21: 0 | U21: 0 | V21: 0 | W21: 0 | X21: 0 | Y21: 0 | Z21: 0 | AA21: 0 | AB21: 0 | AC21: 0 | AD21: 3.1
A22: Equipos Terminales - Internet Móvil | B22: Nota 3.1 | C22: 30116 | R22: 0 | S22: 0 | T22: 0 | U22: 0 | V22: 0 | W22: 0 | X22: 0 | Y22: 0 | Z22: 0 | AA22: 0 | AB22: 0 | AC22: 0 | AD22: 3.1
A23: Otros Equipos Terminales | B23: Nota 3.1 | C23: 30117 | R23: 0 | S23: 0 | T23: 0 | U23: 0 | V23: 0 | W23: 0 | X23: 0 | Y23: 0 | Z23: 0 | AA23: 0 | AB23: 0 | AC23: 0 | AD23: 3.1
A24: Planta y Equipos de Acceso Local | B24: Nota 3.1 | C24: 3012 | D24: 0 | E24: 5.58793 | F24: 3.89522 | Q24: 155186.5726 | R24: 6530.26187 | S24: 1.02031 | T24: 12.75332 | U24: 439503.0332 | V24: 0 | W24: 0 | X24: 0 | Y24: 0 | Z24: 0 | AA24: 0 | AB24: 2176.78364 | AC24: 603419.9081
A25: Equipos Centrales y de agregación | C25: 3013 | D25: =SUM(D26:D33) -> 0 | E25: =SUM(E26:E33) -> 8.99911 | F25: 6.27309 | G25: 0 | H25: 0 | I25: 0 | J25: 0 | K25: 0 | L25: 0 | M25: 0 | N25: 0 | O25: 0 | P25: 0 | Q25: 249921.082 | R25: =SUM(R26:R33) -> 10516.69667 | S25: 1917.26906 | T25: 20.53866 | U25: 714741.1382 | V25: 0 | W25: 5470.85176 | X25: 0 | Y25: 0 | Z25: 0 | AA25: 0 | AB25: 3505.61397 | AC25: 986108.4625
A26: Equipos Centrales Locales | B26: Nota 3.1 | C26: 30131 | D26: 0 | E26: 8.99911 | F26: 6.27309 | Q26: 249921.082 | R26: 10516.69667 | S26: 1917.26906 | T26: 20.53866 | U26: 707800.1126 | V26: 0 | W26: 5470.85176 | X26: 0 | Y26: 0 | Z26: 0 | AA26: 0 | AB26: 3505.61397 | AC26: 979167.4369 | AD26: 3.1
A27: Equipos Centrales de Larga Distancia Nacional | B27: Nota 3.1 | C27: 30132 | R27: 0 | S27: 0 | T27: 0 | U27: 0 | V27: 0 | W27: 0 | X27: 0 | Y27: 0 | Z27: 0 | AA27: 0 | AB27: 0 | AC27: 0 | AD27: 3.1
A28: Equipos Centrales de Larga Distancia Internacional | B28: Nota 3.1 | C28: 30133 | R28: 0 | S28: 0 | T28: 0 | U28: 0 | V28: 0 | W28: 0 | X28: 0 | Y28: 0 | Z28: 0 | AA28: 0 | AB28: 0 | AC28: 0 | AD28: 3.1
A29: Controladores | B29: Nota 3.1 | C29: 30134 | R29: 0 | S29: 0 | T29: 0 | U29: 0 | V29: 0 | W29: 0 | X29: 0 | Y29: 0 | Z29: 0 | AA29: 0 | AB29: 0 | AC29: 0 | AD29: 3.1
A30: Gateways | B30: Nota 3.1 | C30: 30135 | R30: 0 | S30: 0 | T30: 0 | U30: 6941.02559 | V30: 0 | W30: 0 | X30: 0 | Y30: 0 | Z30: 0 | AA30: 0 | AB30: 0 | AC30: 6941.02559 | AD30: 3.1
A31: Cabeceras | B31: Nota 3.1 | C31: 30136 | R31: 0 | S31: 0 | T31: 0 | U31: 0 | V31: 0 | W31: 0 | X31: 0 | Y31: 0 | Z31: 0 | AA31: 0 | AB31: 0 | AC31: 0 | AD31: 3.1
A32: Transmisión de Datos (Servicio Final) | B32: Nota 3.1 | C32: 30137 | R32: 0 | S32: 0 | T32: 0 | U32: 0 | V32: 0 | W32: 0 | X32: 0 | Y32: 0 | Z32: 0 | AA32: 0 | AB32: 0 | AC32: 0 | AD32: 3.1
A33: Otros equipos centrales | B33: Nota 3.1 | C33: 30138 | R33: 0 | S33: 0 | T33: 0 | U33: 0 | V33: 0 | W33: 0 | X33: 0 | Y33: 0 | Z33: 0 | AA33: 0 | AB33: 0 | AC33: 0 | AD33: 3.1
A34: Transmisión (Gran capacidad) | C34: 3014 | D34: =SUM(D35:D40) -> 0 | E34: =SUM(E35:E40) -> 0.01229 | F34: 0.00857 | G34: 0 | H34: 0 | I34: 0 | J34: 0 | K34: 0 | L34: 0 | M34: 0 | N34: 0 | O34: 0 | P34: 0 | Q34: 341.27003 | R34: =SUM(R35:R40) -> 14.36067 | S34: 0.00224 | T34: 0.02805 | U34: 966.50897 | V34: 0 | W34: 0 | X34: 0 | Y34: 0 | Z34: 0 | AA34: 0 | AB34: 4.78279 | AC34: 1326.97361
A35: Cables de Transmisión (excluidos internacional) | B35: Nota 3.1 | C35: 30141 | D35: 0 | E35: 0.01229 | F35: 0.00857 | Q35: 341.27003 | R35: 14.36067 | S35: 0.00224 | T35: 0.02805 | U35: 966.50897 | V35: 0 | W35: 0 | X35: 0 | Y35: 0 | Z35: 0 | AA35: 0 | AB35: 4.78279 | AC35: 1326.97361 | AD35: 3.1
A36: Equipos de Transmisión (excluidos internacional) | B36: Nota 3.1 | C36: 30142 | R36: 0 | S36: 0 | T36: 0 | U36: 0 | V36: 0 | W36: 0 | X36: 0 | Y36: 0 | Z36: 0 | AA36: 0 | AB36: 0 | AC36: 0 | AD36: 3.1
A37: Equipos de Transmisión Radio | B37: Nota 3.1 | C37: 30143 | R37: 0 | S37: 0 | T37: 0 | U37: 0 | V37: 0 | W37: 0 | X37: 0 | Y37: 0 | Z37: 0 | AA37: 0 | AB37: 0 | AC37: 0 | AD37: 3.1
A38: Equipos de Transmisión por Satélite | B38: Nota 3.1 | C38: 30144 | R38: 0 | S38: 0 | T38: 0 | U38: 0 | V38: 0 | W38: 0 | X38: 0 | Y38: 0 | Z38: 0 | AA38: 0 | AB38: 0 | AC38: 0 | AD38: 3.1
A39: Cables y Equipos internacionales (excluyendo satélite) | B39: Nota 3.1 | C39: 30145 | R39: 0 | S39: 0 | T39: 0 | U39: 0 | V39: 0 | W39: 0 | X39: 0 | Y39: 0 | Z39: 0 | AA39: 0 | AB39: 0 | AC39: 0 | AD39: 3.1
A40: Otros equipos de transmisión | B40: Nota 3.1 | C40: 30146 | R40: 0 | S40: 0 | T40: 0 | U40: 0 | V40: 0 | W40: 0 | X40: 0 | Y40: 0 | Z40: 0 | AA40: 0 | AB40: 0 | AC40: 0 | AD40: 3.1
A41: Otros Activos Fijos Brutos de Comunicaciones | C41: 3015 | D41: =SUM(D42:D46) -> 0 | E41: =SUM(E42:E46) -> 2.97578 | F41: 2.07066 | G41: 0 | H41: 0 | I41: 0 | J41: 0 | K41: 0 | L41: 0 | M41: 0 | N41: 0 | O41: 0 | P41: 0 | Q41: 82495.43914 | R41: =SUM(R42:R46) -> 3471.41387 | S41: 0.54238 | T41: 6.77952 | U41: 233634.8764 | V41: 0 | W41: 0 | X41: 0 | Y41: 0 | Z41: 0 | AA41: 0 | AB41: 1156.36001 | AC41: 320770.4578
A42: Equipos de Fuerza (Planta Energía Eléctrica) | B42: Nota 3.1 | C42: 30151 | D42: 0 | E42: 0.63066 | F42: 0.43962 | Q42: 17514.54597 | R42: 737.01332 | S42: 0.11515 | T42: 1.43936 | U42: 49602.84867 | V42: 0 | W42: 0 | X42: 0 | Y42: 0 | Z42: 0 | AA42: 0 | AB42: 245.67438 | AC42: 68102.70713 | AD42: 3.1
A43: Sistema de gestión de Red | B43: Nota 3.1 | C43: 30152 | R43: 0 | S43: 0 | T43: 0 | U43: 0 | V43: 0 | W43: 0 | X43: 0 | Y43: 0 | Z43: 0 | AA43: 0 | AB43: 0 | AC43: 0 | AD43: 3.1
A44: Equipos para Interconexión | B44: Nota 3.1 | C44: 30153 | D44: 0 | E44: 1.577 | F44: 1.0956 | Q44: 43648.90695 | R44: 1836.74907 | S44: 0.28698 | T44: 3.58709 | U44: 123617.8277 | V44: 0 | W44: 0 | X44: 0 | Y44: 0 | Z44: 0 | AA44: 0 | AB44: 611.72493 | AC44: 169721.7553 | AD44: 3.1
A45: Equipos para Circuitos Alquilados | B45: Nota 3.1 | C45: 30154 | R45: 0 | S45: 0 | T45: 0 | U45: 0 | V45: 0 | W45: 0 | X45: 0 | Y45: 0 | Z45: 0 | AA45: 0 | AB45: 0 | AC45: 0 | AD45: 3.1
A46: Otros | B46: Nota 3.1 | C46: 30155 | D46: 0 | E46: 0.76812 | F46: 0.53544 | Q46: 21331.98622 | R46: 897.65148 | S46: 0.14025 | T46: 1.75307 | U46: 60414.20007 | V46: 0 | W46: 0 | X46: 0 | Y46: 0 | Z46: 0 | AA46: 0 | AB46: 298.9607 | AC46: 82945.99535 | AD46: 3.1
A47: Terreno, Edificios, Planta y Equipos no de Telecomunicaciones | C47: 302 | D47: =SUM(D48:D54) -> 0 | E47: =SUM(E48:E54) -> 0.842971 | F47: 0.84728 | G47: 0 | H47: 0 | I47: 0 | J47: 0 | K47: 0 | L47: 0 | M47: 0 | N47: 0 | O47: 0 | P47: 0 | Q47: 33756.2199 | R47: =SUM(R48:R54) -> 1420.4641 | S47: 0.22194 | T47: 2.77411 | U47: 95600.8034 | V47: 0 | W47: 0 | X47: 0 | Y47: 0 | Z47: 0 | AA47: 0 | AB47: 474.66121 | AC47: 131256.8349
A48: Terrenos | B48: Nota 3.1 | C48: 3021 | D48: 0 | E48: 0.04568 | F48: 0.03184 | Q48: 1268.50658 | R48: 53.37885 | S48: 0.00834 | T48: 0.10425 | U48: 3592.53046 | V48: 0 | W48: 0 | X48: 0 | Y48: 0 | Z48: 0 | AA48: 0 | AB48: 17.7777 | AC48: 4932.3837 | AD48: 3.1
A49: Edificios | B49: Nota 3.1 | C49: 3022 | D49: 0 | E49: 0.041391 | F49: 0.28853 | Q49: 11495.03368 | R49: 483.71182 | S49: 0.07558 | T49: 0.94467 | U49: 32555.02123 | V49: 0 | W49: 0 | X49: 0 | Y49: 0 | Z49: 0 | AA49: 0 | AB49: 161.09908 | AC49: 44696.21598 | AD49: 3.1
A50: Vehículos y Ayudas Mécanicas | B50: Nota 3.1 | C50: 3023 | D50: 0 | E50: 0.00201 | F50: 0.0014 | Q50: 55.95711 | R50: 2.35468 | S50: 0.00037 | T50: 0.0046 | U50: 158.47581 | V50: 0 | W50: 0 | X50: 0 | Y50: 0 | Z50: 0 | AA50: 0 | AB50: 0.78422 | AC50: 217.5802 | AD50: 3.1
A51: Equipos Sistemas Informáticos | B51: Nota 3.1 | C51: 3024 | D51: 0 | E51: 0.25051 | F51: 0.17462 | Q51: 6957.02545 | R51: 292.75212 | S51: 0.04574 | T51: 0.57173 | U51: 19702.95326 | V51: 0 | W51: 0 | X51: 0 | Y51: 0 | Z51: 0 | AA51: 0 | AB51: =97.5004+1.579 -> 99.0794 | AC51: 27052.85283 | AD51: 3.1
A52: Edificios en arrendamiento financiero | B52: Nota 3.1 | C52: 3025 | R52: 0 | S52: 0 | T52: 0 | U52: 0 | V52: 0 | W52: 0 | X52: 0 | Y52: 0 | Z52: 0 | AA52: 0 | AB52: 0 | AC52: 0 | AD52: 3.1
A53: Otros activos bajo la forma de arrendamiento o leasing (NIC 17) | B53: Nota 3.1 | C53: 3026 | R53: 0 | S53: 0 | T53: 0 | U53: 0 | V53: 0 | W53: 0 | X53: 0 | Y53: 0 | Z53: 0 | AA53: 0 | AB53: 0 | AC53: 0 | AD53: 3.1
A54: Otros Activos no de comunicaciones | B54: Nota 3.1 | C54: 3027 | D54: 0 | E54: 0.50338 | F54: 0.35089 | Q54: 13979.69708 | R54: 588.26663 | S54: 0.09191 | T54: 1.14886 | U54: 39591.82264 | V54: 0 | W54: 0 | X54: 0 | Y54: 0 | Z54: 0 | AA54: 0 | AB54: 195.92081 | AC54: 54357.8022 | AD54: 3.1
A55: Activos Intangibles | C55: 31 | D55: =SUM(D56:D62) -> 0 | E55: =SUM(E56:E62) -> 12.95665 | F55: 9.0318 | G55: 0 | H55: 0 | I55: 0 | J55: 0 | K55: 0 | L55: 0 | M55: 0 | N55: 0 | O55: 0 | P55: 0 | Q55: 359828.9638 | R55: =SUM(R56:R62) -> 15141.62806 | S55: 2.36578 | T55: 29.57095 | U55: 1019069.616 | V55: 0 | W55: 0 | X55: 0 | Y55: 0 | Z55: 0 | AA55: 0 | AB55: 5042.88339 | AC55: 1399137.017
A56: Concesiones | B56: Nota 3.1 | C56: 311 | D56: 0 | E56: 12.47444 | F56: 8.69566 | Q56: 346437.0236 | R56: 14578.09427 | S56: 2.27773 | T56: 28.47039 | U56: 981142.3763 | V56: 0 | W56: 0 | X56: 0 | Y56: 0 | Z56: 0 | AA56: 0 | AB56: 4855.1998 | AC56: 1347064.612 | AD56: 3.1
A57: Licencias | B57: Nota 3.1 | C57: 312 | R57: 0 | S57: 0 | T57: 0 | U57: 0 | V57: 0 | W57: 0 | X57: 0 | Y57: 0 | Z57: 0 | AA57: 0 | AB57: 0 | AC57: 0 | AD57: 3.1
A58: Patentes y propiedad intelectual | B58: Nota 3.1 | C58: 313 | R58: 0 | S58: 0 | T58: 0 | U58: 0 | V58: 0 | W58: 0 | X58: 0 | Y58: 0 | Z58: 0 | AA58: 0 | AB58: 0 | AC58: 0 | AD58: 3.1
A59: Software | B59: Nota 3.1 | C59: 314 | D59: 0 | E59: 0.48221 | F59: 0.33614 | Q59: 13391.94026 | R59: 563.53379 | S59: 0.08805 | T59: 1.10056 | U59: 37927.23986 | V59: 0 | W59: 0 | X59: 0 | Y59: 0 | Z59: 0 | AA59: 0 | AB59: 187.68359 | AC59: 52072.40446 | AD59: 3.1
A60: Investigación y Desarrollo | B60: Nota 3.1 | C60: 315 | R60: 0 | S60: 0 | T60: 0 | U60: 0 | V60: 0 | W60: 0 | X60: 0 | Y60: 0 | Z60: 0 | AA60: 0 | AB60: 0 | AC60: 0 | AD60: 3.1
A61: Otros Activos Intangibles | B61: Nota 3.1 | C61: 316 | R61: 0 | S61: 0 | T61: 0 | U61: 0 | V61: 0 | W61: 0 | X61: 0 | Y61: 0 | Z61: 0 | AA61: 0 | AB61: 0 | AC61: 0 | AD61: 3.1
A62: Licencias y Software | B62: Nota 3.1 | C62: 317 | R62: 0 | S62: 0 | T62: 0 | U62: 0 | V62: 0 | W62: 0 | X62: 0 | Y62: 0 | Z62: 0 | AA62: 0 | AB62: 0 | AC62: 0 | AD62: 3.1
A63: Otros Activos No Corrientes | B63: Nota 3.1 | C63: 32 | D63: 0 | E63: 18.76643 | F63: 13.08167 | Q63: 521176.574 | R63: 21931.14682 | S63: 3.4266 | T63: 42.83059 | U63: 1476021.29 | V63: 0 | W63: 0 | X63: 0 | Y63: 0 | Z63: 0 | AA63: 0 | AB63: =7304.11656+6.36286 -> 7310.47942 | AC63: =SUM(D63:AB63) -> 2026517.595 | AD63: 3.1
